Workbook

Sheet Poročilo o stroških
A1: IME PODJETJA
A2: POROČILO O STROŠKIH
B4: ZAPOSLENI: | C4: Tina Makovec | G4: ODOBRIL:
B5: ODDELEK | C5: Prodaja
B6: KONEC TEDNA: | C6: 2013-03-07 | G6: DATUM:
B7: KILOMETRINA: | C7: 0.67 €
C9: =UPPER(TEXT(C10,"dddd")) -> PETEK | D9: =UPPER(TEXT(D10,"dddd")) -> SOBOTA | E9: NEDELJA | F9: PONEDELJEK | G9: TOREK | H9: SREDA | I9: ČETRTEK
B10: PREVOZ | C10: =KonecTedna-6 -> 2013-03-01 | D10: =KonecTedna-5 -> 2013-03-02 | E10: =KonecTedna-4 -> 2013-03-03 | F10: =KonecTedna-3 -> 2013-03-04 | G10: =KonecTedna-2 -> 2013-03-05 | H10: =KonecTedna-1 -> 2013-03-06 | I10: =KonecTedna -> 2013-03-07 | J10: SKUPAJ
B11: Število prevoženih kilometrov | C11: 145 | J11: =SUM(transport[[#This Row],[Dan 1]:[Dan 7]]) -> 145
B12: Povračilo kilometrine | C12: =C11*Cestnina -> 97.15 € | D12: 0.00 € | E12: 0.00 € | F12: 0.00 € | G12: 0.00 € | H12: 0.00 € | I12: 0.00 € | J12: =SUM(transport[[#This Row],[Dan 1]:[Dan 7]]) -> 97.15 €
B13: Parkirnina in cestnina | F13: 17.00 € | J13: =SUM(transport[[#This Row],[Dan 1]:[Dan 7]]) -> 17.00 €
B14: Najem avtomobila | C14: 79.00 € | F14: 79.00 € | J14: =SUM(transport[[#This Row],[Dan 1]:[Dan 7]]) -> 158.00 €
B15: Taksi/limuzina | J15: =SUM(transport[[#This Row],[Dan 1]:[Dan 7]]) -> 0.00 €
B16: Drugo (vlak ali avtobus) | J16: =SUM(transport[[#This Row],[Dan 1]:[Dan 7]]) -> 0.00 €
B17: Letalski prevoz | F17: 235.00 € | J17: =SUM(transport[[#This Row],[Dan 1]:[Dan 7]]) -> 235.00 €
B18: SKUPAJ | C18: =SUBTOTAL(109,C12:C17) -> 176.15 € | D18: =SUBTOTAL(109,D12:D17) -> 0.00 € | F18: =SUBTOTAL(109,F12:F17) -> 331.00 € | G18: =SUBTOTAL(109,G12:G17) -> 0.00 € | H18: =SUBTOTAL(109,H12:H17) -> 0.00 € | I18: =SUBTOTAL(109,I12:I17) -> 0.00 € | J18: =SUM(J12:J17) -> 507.15 €
B20: NASTANITEV IN OBROKI
B21: Nastanitev | C21: 145.00 € | J21: =SUM(NastanitevObroki[[#This Row],[Dan 1]:[Dan 7]]) -> 145.00 €
B22: Zajtrk | C22: 11.49 € | J22: =SUM(NastanitevObroki[[#This Row],[Dan 1]:[Dan 7]]) -> 11.49 €
B23: Kosilo | C23: 12.00 € | J23: =SUM(NastanitevObroki[[#This Row],[Dan 1]:[Dan 7]]) -> 12.00 €
B24: Večerja | C24: 17.00 € | J24: =SUM(NastanitevObroki[[#This Row],[Dan 1]:[Dan 7]]) -> 17.00 €
B25: Prigrizki | C25: =C24*Cestnina -> 11.39 € | J25: =SUM(NastanitevObroki[[#This Row],[Dan 1]:[Dan 7]]) -> 11.39 €
B26: Delna vsota obrokov | C26: =SUM(C22:C24) -> 40.49 € | D26: =SUM(D22:D24) -> 0.00 € | E26: 0.00 € | F26: 0.00 € | G26: 0.00 € | H26: 0.00 € | I26: 0.00 € | J26: =SUM(NastanitevObroki[[#This Row],[Dan 1]:[Dan 7]]) -> 40.49 €
B27: SKUPAJ | C27: =SUBTOTAL(109,C21,C26) -> 185.49 € | D27: =SUBTOTAL(109,D21,D26) -> 0.00 € | E27: 0.00 € | F27: 0.00 € | G27: 0.00 € | H27: 0.00 € | I27: 0.00 € | J27: =SUBTOTAL(109,J21,J26) -> 185.49 €
B29: RAZNO
B30: Potrebščine | J30: =SUM(Razno[[#This Row],[Dan 1]:[Dan 7]]) -> 0.00 €
B31: Oprema | J31: =SUM(Razno[[#This Row],[Dan 1]:[Dan 7]]) -> 0.00 €
B32: Telefon, faks, internet | J32: =SUM(Razno[[#This Row],[Dan 1]:[Dan 7]]) -> 0.00 €
B33: Drugo* | J33: =SUM(Razno[[#This Row],[Dan 1]:[Dan 7]]) -> 0.00 €
B34: Zabava* | F34: 199.00 € | J34: =SUM(Razno[[#This Row],[Dan 1]:[Dan 7]]) -> 199.00 €
B35: SKUPAJ | C35: =SUBTOTAL(109,Razno[Dan 1]) -> 0.00 € | D35: =SUBTOTAL(109,Razno[Dan 2]) -> 0.00 € | E35: =SUBTOTAL(109,Razno[Dan 3]) -> 0.00 € | F35: =SUBTOTAL(109,Razno[Dan 4]) -> 199.00 € | G35: =SUBTOTAL(109,Razno[Dan 5]) -> 0.00 € | H35: =SUBTOTAL(109,Razno[Dan 6]) -> 0.00 € | I35: =SUBTOTAL(109,Razno[Dan 7]) -> 0.00 € | J35: =SUBTOTAL(109,Razno[Skupaj]) -> 199.00 €
B37: SKUPNE VSOTE | C37: =SUM(Razno[[#Totals],[Dan 1]],NastanitevObroki[[#Totals],[Dan 1]],transport[[#Totals],[Dan 1]]) -> 361.64 € | D37: =SUM(Razno[[#Totals],[Dan 2]],NastanitevObroki[[#Totals],[Dan 2]],transport[[#Totals],[Dan 2]]) -> 0.00 € | E37: =SUM(Razno[[#Totals],[Dan 3]],NastanitevObroki[[#Totals],[Dan 3]],transport[[#Totals],[Dan 3]]) -> 0.00 € | F37: =SUM(Razno[[#Totals],[Dan 4]],NastanitevObroki[[#Totals],[Dan 4]],transport[[#Totals],[Dan 4]]) -> 530.00 € | G37: =SUM(Razno[[#Totals],[Dan 5]],NastanitevObroki[[#Totals],[Dan 5]],transport[[#Totals],[Dan 5]]) -> 0.00 € | H37: =SUM(Razno[[#Totals],[Dan 6]],NastanitevObroki[[#Totals],[Dan 6]],transport[[#Totals],[Dan 6]]) -> 0.00 € | I37: =SUM(Razno[[#Totals],[Dan 7]],NastanitevObroki[[#Totals],[Dan 7]],transport[[#Totals],[Dan 7]]) -> 0.00 € | J37: =SUM(Razno[[#Totals],[Skupaj]],NastanitevObroki[[#Totals],[Skupaj]],transport[[#Totals],[Skupaj]]) -> 891.64 €
J39: SKUPNI STROŠKI
B40: *Poslovni namen za elemente »Zabava« in »Drugo«: | J40: =SUM(J18,J27,J35) -> 891.64 €
J41: PREDPLAČILA
J43: SKUPAJ POVRAČILO
J44: =J40-J42 -> 891.64 €
J45: Priložite vse račune.
